fUSD/lending_fUSD_20251223
["ID","MTS","AMOUNT","RATE_DAILY","PERIOD"]
[399594527,1766525772295,-256.78851052,0.00041095,2]
[399594528,1766525772305,-1000.0,0.00041095,2]
[399594529,1766525772315,-1000.0,0.00041095,2]
[399594530,1766525772324,-1000.0,0.00041095,2]
[399594531,1766525772334,-1000.0,0.00041095,2]
[399594532,1766525772343,-1000.0,0.00041095,2]
[399594533,1766525772353,-1000.0,0.00041095,2]
[399594534,1766525772362,-1000.0,0.00041095,2]
[399594535,1766525772372,-1000.0,0.00041095,2]
[399594536,1766525772381,-1000.0,0.00041095,2]
[399594537,1766525772391,-1095.65209732,0.00041095,2]
[399594538,1766525772401,-1751.41,0.00041095,120]
[399594539,1766525772410,-1751.41,0.00041095,120]
[399594540,1766525772419,-1751.41,0.00041095,120]
[399594541,1766525772429,-1751.41,0.00041095,120]
[399594542,1766525772438,-1751.41,0.00041095,120]
[399594543,1766525772448,-1751.41,0.00041095,120]
[399594544,1766525772457,-1751.41,0.00041095,120]
[399594545,1766525772467,-1751.41,0.00041095,120]
[399594546,1766525772476,-1751.41,0.00041095,120]
[399594547,1766525772486,-1751.41,0.00041095,120]
[399594548,1766525772495,-1751.41,0.00041095,120]
[399594549,1766525772505,-1751.41,0.00041095,120]
[399594550,1766525772515,-1751.41,0.00041095,120]
[399594551,1766525772524,-1751.41,0.00041095,120]
[399594552,1766525772534,-1751.41,0.00041095,120]
[399594553,1766525772544,-1751.41,0.00041095,120]
[399594554,1766525772554,-1751.41,0.00041095,120]
[399594555,1766525772563,-1751.41,0.00041095,120]
[399594556,1766525772573,-1751.41,0.00041095,120]
[399594557,1766525772583,-1751.41,0.00041095,120]
[399594558,1766525772593,-1751.41,0.00041095,120]
[399594559,1766525772602,-1751.41,0.00041095,120]
[399594560,1766525772612,-1751.41,0.00041095,120]
[399594561,1766525772622,-1751.47961466,0.00041095,120]
[399594562,1766525772632,-1025.58309301,0.00041095,5]
[399594563,1766525772641,-289.09,0.00041095,40]
[399594564,1766525772652,-3957.16,0.00041095,120]
[399594565,1766525772662,-150.0,0.00041096,10]
[399594566,1766525772671,-541.52,0.00041096,120]
[399594567,1766525772682,-459.67045111,0.00041096,2]
[399594568,1766525772692,-151.0,0.00041096,120]
[399594569,1766525772702,-151.0,0.00041096,120]
[399594570,1766525772712,-151.0,0.00041096,120]
[399594571,1766525772722,-151.0,0.00041096,120]
[399594572,1766525772732,-151.0,0.00041096,120]
[399594573,1766525772742,-151.0,0.00041096,120]
[399594574,1766525772751,-151.0,0.00041096,120]
[399594575,1766525772760,-151.0,0.00041096,120]
[399594576,1766525772770,-151.0,0.00041096,120]
[399594577,1766525772783,-151.0,0.00041096,120]
[399594578,1766525772794,-285.155954,0.00041096,120]
[399594579,1766525772803,-1000.0,0.00041096,30]
[399594580,1766525772813,-1000.0,0.00041096,30]
[399594581,1766525772823,-1000.0,0.00041096,30]
[399594582,1766525772833,-1000.0,0.00041096,30]
[399594583,1766525772842,-1000.0,0.00041096,30]
[399594584,1766525772854,-1000.0,0.00041096,30]
[399594585,1766525772863,-1000.0,0.00041096,30]
[399594586,1766525772873,-1000.0,0.00041096,30]
[399594587,1766525772882,-1000.0,0.00041096,30]
[399594588,1766525772891,-1000.0,0.00041096,30]
[399594589,1766525772901,-1000.0,0.00041096,30]
[399594590,1766525772910,-1000.0,0.00041096,30]
[399594591,1766525772920,-1000.0,0.00041096,30]
[399594592,1766525772929,-1000.0,0.00041096,30]
[399594593,1766525772939,-1000.0,0.00041096,30]
[399594594,1766525772949,-1000.0,0.00041096,30]
[399594595,1766525772959,-1000.0,0.00041096,30]
[399594596,1766525772969,-1000.0,0.00041096,30]
[399594597,1766525772978,-1000.0,0.00041096,30]
[399594598,1766525772988,-1000.0,0.00041096,30]
[399594599,1766525772998,-1000.0,0.00041096,30]
[399594600,1766525773007,-1000.0,0.00041096,30]
[399594601,1766525773017,-1000.0,0.00041096,30]
[399594602,1766525773027,-1000.0,0.00041096,30]
[399594603,1766525773036,-1000.0,0.00041096,30]
[399594604,1766525773045,-1000.0,0.00041096,30]
[399594605,1766525773055,-1000.0,0.00041096,30]
[399594606,1766525773064,-1000.0,0.00041096,30]
[399594607,1766525773073,-1000.0,0.00041096,30]
[399594608,1766525773082,-1000.0,0.00041096,30]
[399594609,1766525773092,-1000.0,0.00041096,30]
[399594610,1766525773101,-1000.0,0.00041096,30]
[399594611,1766525773110,-1000.0,0.00041096,30]
[399594612,1766525773120,-1000.0,0.00041096,30]
[399594613,1766525773130,-1000.0,0.00041096,30]
[399594614,1766525773139,-1000.0,0.00041096,30]
[399594615,1766525773149,-1000.0,0.00041096,30]
[399594616,1766525773158,-1000.0,0.00041096,30]
[399594617,1766525773168,-1000.0,0.00041096,30]
[399594618,1766525773176,-1000.0,0.00041096,30]
[399594619,1766525773186,-1000.0,0.00041096,30]
[399594620,1766525773195,-1000.0,0.00041096,30]
[399594621,1766525773205,-1000.0,0.00041096,30]
[399594622,1766525773214,-1000.0,0.00041096,30]
[399594623,1766525773224,-1000.0,0.00041096,30]
[399594624,1766525773233,-1000.0,0.00041096,30]
[399594625,1766525773243,-1000.0,0.00041096,30]
[399594626,1766525773252,-1000.0,0.00041096,30]
[399594627,1766525773262,-1000.0,0.00041096,30]
[399594628,1766525773271,-1000.0,0.00041096,30]
[399594629,1766525773280,-1000.0,0.00041096,30]
[399594630,1766525773290,-1000.0,0.00041096,30]
[399594631,1766525773299,-1000.0,0.00041096,30]
[399594632,1766525773308,-1000.0,0.00041096,30]
[399594633,1766525773318,-1000.0,0.00041096,30]
[399594634,1766525773327,-1000.0,0.00041096,30]
[399594635,1766525773337,-1000.0,0.00041096,30]
[399594636,1766525773346,-1000.0,0.00041096,30]
[399594637,1766525773355,-1000.0,0.00041096,30]
[399594638,1766525773364,-1000.0,0.00041096,30]
[399594639,1766525773373,-1000.0,0.00041096,30]
[399594640,1766525773382,-1000.0,0.00041096,30]
[399594641,1766525773391,-1000.0,0.00041096,30]
[399594642,1766525773401,-1000.0,0.00041096,30]
[399594643,1766525773410,-1000.0,0.00041096,30]
[399594644,1766525773420,-1000.0,0.00041096,30]
[399594645,1766525773429,-1000.0,0.00041096,30]
[399594646,1766525773438,-1000.0,0.00041096,30]
[399594647,1766525773448,-1000.0,0.00041096,30]
[399594648,1766525773458,-1000.0,0.00041096,30]
[399594649,1766525773468,-1000.0,0.00041096,30]
[399594650,1766525773478,-1000.0,0.00041096,30]
[399594651,1766525773488,-1000.0,0.00041096,30]
[399594652,1766525773497,-1000.0,0.00041096,30]
[399594653,1766525773506,-1000.0,0.00041096,30]
[399594654,1766525773516,-1000.0,0.00041096,30]
[399594655,1766525773525,-1000.0,0.00041096,30]
[399594656,1766525773534,-1000.0,0.00041096,30]
[399594657,1766525773544,-1000.0,0.00041096,30]
[399594658,1766525773553,-1000.0,0.00041096,30]
[399594659,1766525773562,-1000.0,0.00041096,30]
[399594660,1766525773571,-1000.0,0.00041096,30]
[399594661,1766525773580,-1000.0,0.00041096,30]
[399594662,1766525773589,-1000.0,0.00041096,30]
[399594663,1766525773599,-1000.0,0.00041096,30]
[399594664,1766525773608,-1000.0,0.00041096,30]
[399594665,1766525773618,-1000.0,0.00041096,30]
[399594666,1766525773628,-1000.0,0.00041096,30]
[399594667,1766525773638,-1000.0,0.00041096,30]
[399594668,1766525773647,-1000.0,0.00041096,30]
[399594669,1766525773656,-1000.0,0.00041096,30]
[399594670,1766525773666,-1000.0,0.00041096,30]
[399594671,1766525773676,-1000.0,0.00041096,30]
[399594672,1766525773685,-1000.0,0.00041096,30]
[399594673,1766525773695,-1000.0,0.00041096,30]
[399594674,1766525773704,-1000.0,0.00041096,30]
[399594675,1766525773714,-1000.0,0.00041096,30]
[399594676,1766525773723,-1000.0,0.00041096,30]
[399594677,1766525773732,-1000.0,0.00041096,30]
[399594678,1766525773742,-1000.0,0.00041096,30]
[399594679,1766525773753,-2000.0,0.00041096,13]
[399594680,1766525773763,-2000.0,0.00041096,13]
[399594681,1766525773773,-2000.0,0.00041096,13]
[399594682,1766525773786,-2000.0,0.00041096,13]
[399594683,1766525773796,-2000.0,0.00041096,13]
[399594684,1766525773806,-2000.0,0.00041096,13]
[399594685,1766525773815,-2000.0,0.00041096,13]
[399594686,1766525773827,-2000.0,0.00041096,13]
[399594687,1766525773837,-2000.0,0.00041096,13]
[399594688,1766525773847,-2000.0,0.00041096,13]
[399594689,1766525773858,-1159.0,0.00041096,13]
[399594690,1766525773868,-184.008609,0.00041096,120]
[399594691,1766525773877,-184.008609,0.00041096,120]
[399594692,1766525773887,-184.008609,0.00041096,120]
[399594693,1766525773897,-184.008609,0.00041096,120]
[399594694,1766525773907,-184.008609,0.00041096,120]
[399594695,1766525773916,-184.008609,0.00041096,120]
[399594696,1766525773926,-184.008609,0.00041096,120]
[399594697,1766525773936,-184.008609,0.00041096,120]
[399594698,1766525773946,-184.008609,0.00041096,120]
[399594699,1766525773955,-184.008609,0.00041096,120]
[399594700,1766525773966,-184.008609,0.00041096,120]
[399594701,1766525773975,-184.008609,0.00041096,120]
[399594702,1766525773985,-184.008609,0.00041096,120]
[399594703,1766525773995,-184.008609,0.00041096,120]
[399594704,1766525774005,-184.008609,0.00041096,120]
[399594705,1766525774015,-184.008609,0.00041096,120]
[399594706,1766525774024,-184.008609,0.00041096,120]
[399594707,1766525774034,-184.008609,0.00041096,120]
[399594708,1766525774044,-184.008609,0.00041096,120]
[399594709,1766525774054,-184.0086,0.00041096,120]
[399594710,1766525774064,-316.5,0.00041096,2]
[399594711,1766525774073,-864.5,0.00041096,53]
[399594712,1766525774083,-753.5,0.00041096,57]
[399594713,1766525774093,-1040.5,0.00041096,52]
[399594714,1766525774102,-416.2,0.00041096,53]
[399594715,1766525774112,-821.5,0.00041096,54]
[399594716,1766525774122,-627.36723982,0.00041096,52]
[399594717,1766525774132,-373.45,0.00041096,50]
[399594718,1766525774142,-914.0,0.00041096,59]
[399594719,1766525774151,-639.87255184,0.00041096,65]
[399594720,1766525774162,-868.45133379,0.00041096,71]
[399594721,1766525774171,-747.13,0.000411,120]
[399594722,1766525774181,-194.0,0.000411,120]
[399594723,1766525774191,-174.0,0.000411,120]
[399594724,1766525774200,-151.55,0.0004115,120]
[399594725,1766525774210,-160.02,0.0004115,120]
[399594726,1766525774219,-151.3,0.00041162,120]
[399594727,1766525774228,-406.66,0.00041162,120]
[399594728,1766525774238,-2189.0579567,0.0004123,5]
[399594729,1766525774247,-151.55,0.0004125,120]
[399594730,1766525774257,-160.14,0.0004125,120]
[399594731,1766525774266,-151.3,0.00041262,120]
[399594732,1766525774276,-406.66,0.00041262,120]
[399594733,1766525774286,-168.62211264,0.00041311,2]
[399594734,1766525774296,-181.548,0.00041332,2]
[399594735,1766525774306,-464.7574,0.00041332,2]
[399594736,1766525774315,-151.55,0.0004135,120]
[399594737,1766525774325,-151.3,0.00041362,120]
[399594738,1766525774335,-406.66,0.00041362,120]
[399594739,1766525774344,-833.86,0.00041363,30]
[399594740,1766525774354,-833.86,0.00041363,30]
[399594741,1766525774365,-1321.06168288,0.000414,30]
[399594742,1766525774375,-877.42515982,0.00041401,30]
[399594743,1766525774384,-168.62211264,0.00041411,2]
[399594744,1766525774394,-298.65528516,0.0004142,120]
[399594745,1766525774403,-464.7574,0.00041432,2]
[399594746,1766525774414,-151.55,0.0004145,120]
[399594747,1766525774423,-151.3,0.00041462,120]
[399594748,1766525774432,-406.66,0.00041462,120]
[399594749,1766525774442,-150.0,0.00041466,120]
[399594750,1766525774452,-200.97972596,0.00041472,120]
[399594751,1766525774461,-22638.48577858,0.0004148,3]
[399594752,1766525774471,-150.0,0.00041498,120]
[399594753,1766525774480,-150.0,0.00041502,30]
[399594754,1766525774491,-867.18045236,0.00041502,30]
[399594755,1766525774500,-150.0,0.00041502,30]
[399594756,1766525774510,-1671.95269557,0.00041502,30]
[399594757,1766525774519,-150.0,0.00041502,30]
[399594758,1766525774529,-168.62211264,0.00041511,2]
[399594759,1766525774538,-464.7574,0.00041532,2]
[399594760,1766525774547,-151.55,0.0004155,120]
[399594761,1766525774556,-151.3,0.00041562,120]
[399594762,1766525774566,-406.66,0.00041562,120]
[399594763,1766525774575,-150.0,0.00041566,120]
[399594764,1766525774584,-1349.4,0.00041592,7]
[399594765,1766525774594,-22001.51662051,0.00041601,30]
[399594766,1766525774604,-464.7574,0.00041632,2]
[399594767,1766525774613,-833.86,0.00041637,30]
[399594768,1766525774622,-833.86,0.00041637,30]
[399594769,1766525774632,-1270.92,0.00041638,30]
[399594770,1766525774641,-151.55,0.0004165,120]
[399594771,1766525774650,-151.3,0.00041662,120]
[399594772,1766525774660,-406.66,0.00041662,120]
[399594773,1766525774670,-194.0,0.000417,120]
[399594774,1766525774679,-174.0,0.000417,120]
[399594775,1766525774688,-464.7574,0.00041732,2]
[399594776,1766525774698,-2679.0,0.00041747,120]
[399594777,1766525774707,-151.55,0.0004175,120]
[399594778,1766525774717,-152.0,0.00041757,8]
[399594779,1766525774727,-150.0,0.00041762,120]
[399594780,1766525774737,-151.3,0.00041762,120]
[399594781,1766525774746,-406.66,0.00041762,120]
[399594782,1766525774755,-150.0,0.00041767,120]
[399594783,1766525774764,-2893.006698,0.00041771,7]
[399594784,1766525774774,-1465.711963,0.00041771,7]
[399594785,1766525774788,-289.09,0.0004178,41]
[399594786,1766525774797,-150.0,0.00041799,120]
[399594787,1766525774807,-1000.0,0.000418,30]
[399594788,1766525774816,-307.01133447,0.000418,120]
[399594789,1766525774827,-1764.0,0.000418,120]
[399594790,1766525774836,-1765.0,0.000418,120]
[399594791,1766525774846,-150.0,0.00041824,120]
[399594792,1766525774855,-464.7574,0.00041832,2]
[399594793,1766525774866,-200.0,0.00041845,120]
[399594794,1766525774875,-151.55,0.0004185,120]
[399594795,1766525774884,-290.955,0.00041854,30]
[399594796,1766525774894,-151.3,0.00041862,120]
[399594797,1766525774903,-406.66,0.00041862,120]
[399594798,1766525774912,-150.0,0.00041887,120]
[399594799,1766525774921,-280000.0,0.000419,14]
[399594800,1766525774931,-833.86,0.00041911,30]
[399594801,1766525774941,-833.86,0.00041911,30]
[399594802,1766525774950,-200.0,0.00041918,10]
[399594803,1766525774959,-464.7574,0.00041932,2]
[399594804,1766525774968,-151.55,0.0004195,120]
[399594805,1766525774978,-151.3,0.00041962,120]
[399594806,1766525774987,-406.66,0.00041962,120]
[399594807,1766525774996,-2500.0,0.00041971,30]
[399594808,1766525775006,-309.95211642,0.00041999,120]
[399594809,1766525775015,-50000.0,0.00042,42]
[399594810,1766525775024,-50000.0,0.00042,32]
[399594811,1766525775034,-50000.0,0.00042,22]
[399594812,1766525775043,-697.30704357,0.00042,5]
[399594813,1766525775053,-1233.0,0.00042,30]
[399594814,1766525775062,-392.92732751,0.00042,30]
[399594815,1766525775071,-250.0,0.00042,21]
[399594816,1766525775081,-1543.0,0.00042,2]
[399594817,1766525775090,-250000.0,0.00042,30]
[399594818,1766525775099,-574.0,0.00042,30]
[399594819,1766525775109,-175.0,0.00042,2]
[399594820,1766525775118,-247.70122684,0.00042,120]
[399594821,1766525775128,-1783.1509323,0.00042,30]
[399594822,1766525775137,-159.2057979,0.00042,120]
[399594823,1766525775147,-176.0,0.00042,2]
[399594824,1766525775157,-150.0,0.00042,120]
[399594825,1766525775167,-150.0,0.00042,120]
[399594826,1766525775177,-150.0,0.00042,120]
[399594827,1766525775187,-150.0,0.00042,120]
[399594828,1766525775197,-200.0,0.00042,120]
[399594829,1766525775208,-150.0,0.00042,60]
[399594830,1766525775218,-150.0,0.00042,60]
[399594831,1766525775227,-150.0,0.00042,60]
[399594832,1766525775237,-150.0,0.00042,60]
[399594833,1766525775248,-150.0,0.00042,60]
[399594834,1766525775258,-150.0,0.00042,60]
[399594835,1766525775267,-150.0,0.00042,60]
[399594836,1766525775277,-150.0,0.00042,60]
[399594837,1766525775287,-150.0,0.00042,60]
[399594838,1766525775297,-150.0,0.00042,120]
[399594839,1766525775307,-150.0,0.00042,120]
[399594840,1766525775318,-150.0,0.00042,120]
[399594841,1766525775328,-150.0,0.00042,120]
[399594842,1766525775338,-150.0,0.00042,120]
[399594843,1766525775348,-150.0,0.00042,120]
[399594844,1766525775358,-150.0,0.00042,120]
[399594845,1766525775368,-150.0,0.00042,120]
[399594846,1766525775378,-150.0,0.00042,120]
[399594847,1766525775388,-150.0,0.00042,120]
[399594848,1766525775398,-150.0,0.00042,120]
[399594849,1766525775409,-2313121.10942206,0.00042,30]
[399594850,1766525775419,-473.28369556,0.00042,120]
[399594851,1766525775429,-245.92,0.00042,14]
[399594852,1766525775438,-183.17,0.00042,14]
[399594853,1766525775448,-150.0,0.00042,60]
[399594854,1766525775457,-253.0,0.00042,37]
[399594855,1766525775466,-150.0,0.00042,53]
[399594856,1766525775476,-151.0,0.00042,120]
[399594857,1766525775486,-151.0,0.00042,120]
[399594858,1766525775496,-1355.58316785,0.0004201,2]
[399594859,1766525775505,-150.21248355,0.0004201,30]
[399594860,1766525775514,-570.3,0.00042016,6]
[399594861,1766525775523,-464.7574,0.00042032,2]
[399594862,1766525775532,-151.55,0.0004205,120]
[399594863,1766525775542,-151.3,0.00042062,120]
[399594864,1766525775551,-406.66,0.00042062,120]
[399594865,1766525775560,-582.0,0.000421,3]
[399594866,1766525775570,-325.0,0.0004211,120]
[399594867,1766525775580,-174.9642448,0.00042121,120]
[399594868,1766525775589,-464.7574,0.00042132,2]
[399594869,1766525775599,-1349.4,0.00042142,7]
[399594870,1766525775609,-151.55,0.0004215,120]
[399594871,1766525775619,-151.3,0.00042162,120]
[399594872,1766525775628,-406.66,0.00042162,120]
[399594873,1766525775637,-833.86,0.00042185,30]
[399594874,1766525775646,-833.86,0.00042185,30]
[399594875,1766525775656,-3957.16,0.00042191,120]
[399594876,1766525775666,-5597.94581404,0.000422,2]
[399594877,1766525775676,-366.64631115,0.000422,5]
[399594878,1766525775686,-194.0,0.000422,120]
[399594879,1766525775695,-174.0,0.000422,120]
[399594880,1766525775706,-151.55,0.0004225,120]
[399594881,1766525775715,-151.3,0.00042262,120]
[399594882,1766525775725,-406.7254,0.00042262,120]
[399594883,1766525775735,-150.0,0.00042278,60]
[399594884,1766525775745,-150.0,0.00042278,60]
[399594885,1766525775756,-27289.36240859,0.0004228,2]
[399594886,1766525775765,-150.0,0.00042316,120]
[399594887,1766525775775,-151.55,0.0004235,120]
[399594888,1766525775787,-151.3,0.00042362,120]
[399594889,1766525775797,-2000.0,0.00042446,3]
[399594890,1766525775806,-151.55,0.0004245,120]
[399594891,1766525775815,-833.86,0.00042459,30]
[399594892,1766525775826,-833.86,0.00042459,30]
[399594893,1766525775835,-151.3,0.00042462,120]
[399594894,1766525775845,-289.09,0.00042465,42]
[399594895,1766525775856,-151.0,0.00042466,90]
[399594896,1766525776026,-151.0,0.00042466,90]
[399594897,1766525776040,-151.0,0.00042466,90]
[399594898,1766525776049,-151.0,0.00042466,90]
[399594899,1766525776059,-151.0,0.00042466,90]
[399594900,1766525776069,-151.0,0.00042466,90]
[399594901,1766525776079,-151.0,0.00042466,90]
[399594902,1766525776088,-151.0,0.00042466,90]
[399594903,1766525776098,-151.0,0.00042466,90]
[399594904,1766525776107,-151.0,0.00042466,90]
[399594905,1766525776117,-151.0,0.00042466,90]
[399594906,1766525776127,-289.142466,0.00042466,90]
[399594907,1766525776137,-50000.0,0.000425,43]
[399594908,1766525776147,-50000.0,0.000425,33]
[399594909,1766525776156,-151.55,0.0004255,120]
[399594910,1766525776166,-150.0,0.0004256,120]
[399594911,1766525776177,-151.3,0.00042562,120]
[399594912,1766525776187,-200.97972596,0.00042568,120]
[399594913,1766525776197,-311.23,0.00042603,30]
[399594914,1766525776207,-1254.41721277,0.00042643,7]
[399594915,1766525776217,-150.0,0.00042645,120]
[399594916,1766525776227,-150.0,0.00042649,120]
[399594917,1766525776237,-151.55,0.0004265,120]
[399594918,1766525776246,-151.3,0.00042662,120]
[399594919,1766525776256,-300.0,0.0004267,3]
[399594920,1766525776266,-250.0,0.0004267,3]
[399594921,1766525776277,-250.0,0.0004267,3]
[399594922,1766525776287,-300.0,0.0004267,3]
[399594923,1766525776297,-300.0,0.0004267,3]
[399594924,1766525776307,-1000.0,0.00042672,30]
[399594925,1766525776318,-1349.4,0.00042693,7]
[399594926,1766525776329,-107680.53427227,0.00042696,30]
[399594927,1766525776338,-107680.53427227,0.00042696,30]
[399594928,1766525776348,-249.49227738,0.000427,30]
[399594929,1766525776365,-205.2,0.000427,44]
[399594930,1766525776376,-205.2,0.000427,44]
[399594931,1766525776387,-205.2,0.000427,44]
[399594932,1766525776397,-205.2,0.000427,44]
[399594933,1766525776407,-205.2,0.000427,44]
[399594934,1766525776418,-1100.34845473,0.000427,30]
[399594935,1766525776428,-178.89073245,0.000427,30]
[399594936,1766525776438,-159.74,0.00042702,120]
[399594937,1766525776448,-1000.0,0.00042706,7]
[399594938,1766525776458,-222.49780322,0.00042707,60]
[399594939,1766525776468,-500.0,0.00042707,60]
[399594940,1766525776479,-220.71,0.00042707,60]
[399594941,1766525776489,-151.0,0.00042708,120]
[399594942,1766525776499,-151.0,0.00042708,90]
[399594943,1766525776509,-151.0,0.00042708,90]
[399594944,1766525776519,-833.86,0.00042733,30]
[399594945,1766525776529,-833.86,0.00042733,30]
[399594946,1766525776539,-352.23438451,0.0004274,10]
[399594947,1766525776549,-150.0,0.0004274,30]
[399594948,1766525776560,-150.0,0.0004274,30]
[399594949,1766525776571,-154.15,0.0004274,30]
[399594950,1766525776581,-150.0,0.0004274,30]
[399594951,1766525776592,-150.0,0.0004274,30]
[399594952,1766525776602,-150.0,0.0004274,30]
[399594953,1766525776612,-150.0,0.0004274,30]
[399594954,1766525776623,-150.0,0.0004274,30]
[399594955,1766525776632,-150.0,0.0004274,30]
[399594956,1766525776642,-150.0,0.0004274,30]
[399594957,1766525776652,-150.0,0.0004274,30]
[399594958,1766525776662,-150.0,0.0004274,30]
[399594959,1766525776672,-151.55,0.0004275,120]
[399594960,1766525776682,-150.0,0.00042761,120]
[399594961,1766525776692,-151.3,0.00042762,120]
[399594962,1766525776702,-50000.0,0.0004277,30]
[399594963,1766525776712,-50000.0,0.0004277,31]
[399594964,1766525776722,-50000.0,0.0004277,32]
[399594965,1766525776738,-50000.0,0.0004277,33]
[399594966,1766525776748,-50000.0,0.0004277,34]
[399594967,1766525776760,-50000.0,0.0004277,35]
[399594968,1766525776770,-50000.0,0.0004277,36]
[399594969,1766525776784,-50000.0,0.0004277,37]
[399594970,1766525776794,-50000.0,0.0004277,38]
[399594971,1766525776804,-50000.0,0.0004277,39]
[399594972,1766525776814,-50000.0,0.0004277,40]
[399594973,1766525776827,-50000.0,0.0004277,30]
[399594974,1766525776837,-50000.0,0.0004277,31]
[399594975,1766525776847,-50000.0,0.0004277,32]
[399594976,1766525776858,-50000.0,0.0004277,33]
[399594977,1766525776868,-50000.0,0.0004277,34]
[399594978,1766525776879,-50000.0,0.0004277,35]
[399594979,1766525776889,-50000.0,0.0004277,36]
[399594980,1766525776900,-50000.0,0.0004277,37]
[399594981,1766525776910,-50000.0,0.0004277,38]
[399594982,1766525776920,-50000.0,0.0004277,39]
[399594983,1766525776931,-50000.0,0.0004277,40]
[399594984,1766525776942,-37717745.12055524,0.00042771,7]
[399594985,1766525776953,-1513.39487641,0.00042771,2]
[399594986,1766525776963,-397.70384744,0.00042771,2]
[399594987,1766525776974,-576.17532202,0.00042771,5]
[399594988,1766525776984,-1210.0,0.00042771,2]
[399594989,1766525776995,-715.02069308,0.00042771,2]
[399594990,1766525777006,-354.27440638,0.00042771,2]
[399594991,1766525777016,-1546.36698807,0.00042771,2]
[399594992,1766525777026,-1047.25907135,0.00042771,2]
[399594993,1766525777038,-5275.10264498,0.00042771,2]
[399594994,1766525777048,-352.64402378,0.00042771,2]
[399594995,1766525777059,-2496.98433351,0.00042771,2]
[399594996,1766525777069,-2749.51890671,0.00042771,2]
[399594997,1766525777079,-153.8844085,0.00042771,2]
[399594998,1766525777094,-1705.98614257,0.00042771,2]
[399594999,1766525777106,-998.88193516,0.00042771,5]
[399595000,1766525777117,-253.38342388,0.00042771,2]
[399595001,1766525777127,-500.0,0.00042771,2]
[399595002,1766525777138,-1282.82364261,0.00042771,2]
[399595003,1766525777148,-1059.31588246,0.00042771,2]
[399595004,1766525777159,-600.0,0.00042771,5]
[399595005,1766525777169,-554.5563095,0.00042771,2]
[399595006,1766525777180,-500.0,0.00042771,5]
[399595007,1766525777190,-9388.96696509,0.00042771,2]
[399595008,1766525777201,-1333.91008555,0.00042771,2]
[399595009,1766525777212,-1221.0,0.00042771,4]
[399595010,1766525777222,-3477.60235941,0.00042771,2]
[399595011,1766525777233,-2233.38865098,0.00042771,2]
[399595012,1766525777243,-760.2251185,0.00042771,2]
[399595013,1766525777254,-1952.04883307,0.00042771,2]
[399595014,1766525777265,-187.16766035,0.00042771,2]
[399595015,1766525777276,-643.0,0.00042771,2]
[399595016,1766525777286,-2005.75291808,0.00042771,4]
[399595017,1766525777297,-986.97766199,0.00042771,2]
[399595018,1766525777308,-582.72245826,0.00042771,2]
[399595019,1766525777318,-3295.19949658,0.00042771,2]
[399595020,1766525777327,-178.32703992,0.00042771,2]
[399595021,1766525777338,-7392.529939,0.00042771,2]
[399595022,1766525777348,-550.0,0.00042771,2]
[399595023,1766525777359,-1025.50420326,0.00042771,2]
[399595024,1766525777370,-232.67484926,0.00042771,2]
[399595025,1766525777380,-176.58118093,0.00042771,2]
[399595026,1766525777390,-6000.0,0.00042771,2]